[Event "Titled Tuesday Blitz February 22 Early 2022"]
[White "Tillis., Bryan"]
[Black "Ginzburg, Yakov"]
[WhiteFideId "2059053"]
[BlackFideId "4157176"]
[WhiteElo "2387"]
[BlackElo "2265"]
[Result "0-1"]
[Round "11"]
[TimeControl "180+1"]
[Date "2022.02.22"]
[WhiteClock "0:00:01"]
[BlackClock "0:00:07"]

1. c4 {[%clk 0:03:00]}  c6 {[%clk 0:02:59]} 2. Qa4 {[%clk 0:03:00]}  d5 {[%clk 0:03:00]} 3. cxd5 {[%clk 0:03:00]}  Qxd5 {[%clk 0:02:58]} 4. Nc3 {[%clk 0:03:01]}  Qd8 {[%clk 0:02:57]} 5. Nf3 {[%clk 0:03:00]}  Nf6 {[%clk 0:02:52]} 6. d4 {[%clk 0:02:58]}  g6 {[%clk 0:02:52]} 7. Bf4 {[%clk 0:02:58]}  b5 {[%clk 0:02:46]} 8. Qd1 {[%clk 0:02:50]}  Bg7 {[%clk 0:02:45]} 9. e3 {[%clk 0:02:49]}  O-O {[%clk 0:02:43]} 10. Be2 {[%clk 0:02:44]}  Nbd7 {[%clk 0:02:41]} 11. Ne5 {[%clk 0:02:41]}  Bb7 {[%clk 0:02:37]} 12. Bf3 {[%clk 0:02:39]}  Qb6 {[%clk 0:02:30]} 13. O-O {[%clk 0:02:33]}  a5 {[%clk 0:02:29]} 14. Rc1 {[%clk 0:02:24]}  Rad8 {[%clk 0:02:27]} 15. Qc2 {[%clk 0:02:13]}  c5 {[%clk 0:02:22]} 16. Bxb7 {[%clk 0:02:06]}  Qxb7 {[%clk 0:02:16]} 17. Nxd7 {[%clk 0:01:45]}  Nxd7 {[%clk 0:02:12]} 18. dxc5 {[%clk 0:01:38]}  Nxc5 {[%clk 0:02:13]} 19. Rfd1 {[%clk 0:01:26]}  b4 {[%clk 0:01:52]} 20. Ne2 {[%clk 0:01:15]}  Ne4 {[%clk 0:01:43]} 21. Ng3 {[%clk 0:00:58]}  Nxg3 {[%clk 0:01:35]} 22. Bxg3 {[%clk 0:00:56]}  Rc8 {[%clk 0:01:35]} 23. Qb3 {[%clk 0:00:48]}  Rfd8 {[%clk 0:01:33]} 24. h3 {[%clk 0:00:43]}  h5 {[%clk 0:01:25]} 25. Rxd8+ {[%clk 0:00:31]}  Rxd8 {[%clk 0:01:25]} 26. Qc2 {[%clk 0:00:30]}  Qd5 {[%clk 0:01:18]} 27. b3 {[%clk 0:00:23]}  Bc3 {[%clk 0:01:18]} 28. Bh4 {[%clk 0:00:16]}  Rd7 {[%clk 0:01:16]} 29. Bg3 {[%clk 0:00:16]}  Kg7 {[%clk 0:01:09]} 30. f3 {[%clk 0:00:15]}  Qd3 {[%clk 0:01:04]} 31. Bf2 {[%clk 0:00:13]}  Qb5 {[%clk 0:00:59]} 32. Rd1 {[%clk 0:00:10]}  Rc7 {[%clk 0:00:48]} 33. e4 {[%clk 0:00:08]}  Be5 {[%clk 0:00:46]} 34. Qd3 {[%clk 0:00:06]}  Qxd3 {[%clk 0:00:45]} 35. Rxd3 {[%clk 0:00:07]}  Rc2 {[%clk 0:00:45]} 36. Bd4 {[%clk 0:00:05]}  Bxd4+ {[%clk 0:00:41]} 37. Rxd4 {[%clk 0:00:06]}  Rxa2 {[%clk 0:00:41]} 38. Rd5 {[%clk 0:00:06]}  Ra3 {[%clk 0:00:34]} 39. Rb5 {[%clk 0:00:05]}  Rxb3 {[%clk 0:00:32]} 40. Rxa5 {[%clk 0:00:05]}  Rb2 {[%clk 0:00:32]} 41. Rb5 {[%clk 0:00:04]}  b3 {[%clk 0:00:31]} 42. h4 {[%clk 0:00:04]}  Kf6 {[%clk 0:00:31]} 43. Kh2 {[%clk 0:00:04]}  Ke6 {[%clk 0:00:31]} 44. Kg3 {[%clk 0:00:05]}  Kd6 {[%clk 0:00:31]} 45. Rb7 {[%clk 0:00:04]}  f6 {[%clk 0:00:30]} 46. Rb6+ {[%clk 0:00:03]}  Kc5 {[%clk 0:00:29]} 47. Rb7 {[%clk 0:00:04]}  e5 {[%clk 0:00:29]} 48. Rb8 {[%clk 0:00:03]}  Kc4 {[%clk 0:00:29]} 49. Rc8+ {[%clk 0:00:04]}  Kd4 {[%clk 0:00:28]} 50. Rd8+ {[%clk 0:00:04]}  Ke3 {[%clk 0:00:20]} 51. Rd6 {[%clk 0:00:04]}  Rc2 {[%clk 0:00:20]} 52. Rxf6 {[%clk 0:00:03]}  b2 {[%clk 0:00:20]} 53. Rb6 {[%clk 0:00:03]}  Kd2 {[%clk 0:00:21]} 54. f4 {[%clk 0:00:03]}  Rc3+ {[%clk 0:00:19]} 55. Kf2 {[%clk 0:00:03]}  Kc2 {[%clk 0:00:13]} 56. fxe5 {[%clk 0:00:02]}  Rb3 {[%clk 0:00:12]} 57. Rc6+ {[%clk 0:00:03]}  Kd3 {[%clk 0:00:09]} 58. e6 {[%clk 0:00:01]}  b1=Q {[%clk 0:00:09]} 59. e7 {[%clk 0:00:01]}  Rb2+ {[%clk 0:00:09]} 60. Kg3 {[%clk 0:00:01]}  Qe1+ {[%clk 0:00:08]} 61. Kf4 {[%clk 0:00:01]}  Qxh4+ {[%clk 0:00:07]} 0-1


[Site "https://www.chess.com"]

[Event "Titled Tuesday Blitz February 22 Early 2022"]
[White "Timofeev, Artyom"]
[Black "Assaubayeva, Bibisara"]
[WhiteFideId "4140419"]
[BlackFideId "13708694"]
[WhiteElo "2583"]
[BlackElo "2404"]
[Result "1/2-1/2"]
[Round "11"]
[TimeControl "180+1"]
[Date "2022.02.22"]
[WhiteClock "0:00:31"]
[BlackClock "0:00:15"]

1. d4 {[%clk 0:03:00]}  Nf6 {[%clk 0:02:58]} 2. c4 {[%clk 0:03:01]}  g6 {[%clk 0:02:58]} 3. Nc3 {[%clk 0:03:01]}  Bg7 {[%clk 0:02:59]} 4. Bf4 {[%clk 0:03:00]}  O-O {[%clk 0:03:00]} 5. e3 {[%clk 0:03:00]}  d6 {[%clk 0:02:57]} 6. h3 {[%clk 0:03:00]}  b6 {[%clk 0:02:57]} 7. Nf3 {[%clk 0:03:00]}  Bb7 {[%clk 0:02:58]} 8. Be2 {[%clk 0:03:00]}  Nbd7 {[%clk 0:02:57]} 9. O-O {[%clk 0:03:00]}  Ne4 {[%clk 0:02:57]} 10. Nxe4 {[%clk 0:02:59]}  Bxe4 {[%clk 0:02:58]} 11. Bh2 {[%clk 0:02:59]}  Bb7 {[%clk 0:02:57]} 12. Qd2 {[%clk 0:02:58]}  e5 {[%clk 0:02:57]} 13. Qc2 {[%clk 0:02:48]}  Qe7 {[%clk 0:02:53]} 14. Rad1 {[%clk 0:02:46]}  Rfe8 {[%clk 0:02:50]} 15. b4 {[%clk 0:02:45]}  a5 {[%clk 0:02:47]} 16. a3 {[%clk 0:02:44]}  axb4 {[%clk 0:02:46]} 17. axb4 {[%clk 0:02:45]}  Ra3 {[%clk 0:02:39]} 18. Rfe1 {[%clk 0:02:36]}  Bxf3 {[%clk 0:02:36]} 19. Bxf3 {[%clk 0:02:35]}  exd4 {[%clk 0:02:36]} 20. Bf4 {[%clk 0:02:19]}  g5 {[%clk 0:02:24]} 21. Bg3 {[%clk 0:02:18]}  dxe3 {[%clk 0:02:21]} 22. Kh2 {[%clk 0:02:18]}  Ne5 {[%clk 0:02:13]} 23. Bd5 {[%clk 0:02:16]}  c6 {[%clk 0:02:00]} 24. Be4 {[%clk 0:02:12]}  Rc3 {[%clk 0:01:40]} 25. Bxh7+ {[%clk 0:02:08]}  Kh8 {[%clk 0:01:40]} 26. Qb1 {[%clk 0:02:08]}  exf2 {[%clk 0:01:37]} 27. Bxf2 {[%clk 0:02:03]}  Qf6 {[%clk 0:01:35]} 28. Bf5 {[%clk 0:01:58]}  Rxc4 {[%clk 0:01:25]} 29. Bxb6 {[%clk 0:01:54]}  Rb8 {[%clk 0:01:23]} 30. Ba5 {[%clk 0:01:36]}  g4 {[%clk 0:01:21]} 31. Rf1 {[%clk 0:01:30]}  Qh4 {[%clk 0:01:05]} 32. Qb3 {[%clk 0:01:26]}  Rc3 {[%clk 0:01:02]} 33. Qxc3 {[%clk 0:01:20]}  Nf3+ {[%clk 0:01:02]} 34. Qxf3 {[%clk 0:01:20]}  gxf3 {[%clk 0:01:02]} 35. Rxf3 {[%clk 0:01:21]}  d5 {[%clk 0:00:58]} 36. Bc7 {[%clk 0:01:14]}  Rxb4 {[%clk 0:00:57]} 37. Bg3 {[%clk 0:01:15]}  Qg5 {[%clk 0:00:49]} 38. Bd7 {[%clk 0:01:11]}  Rb2 {[%clk 0:00:41]} 39. Bxc6 {[%clk 0:01:05]}  d4 {[%clk 0:00:40]} 40. Be4 {[%clk 0:01:03]}  Be5 {[%clk 0:00:38]} 41. Bd3 {[%clk 0:00:53]}  Rf2 {[%clk 0:00:34]} 42. Rf1 {[%clk 0:00:39]}  Rxf1 {[%clk 0:00:33]} 43. Bxf1 {[%clk 0:00:39]}  Bxg3+ {[%clk 0:00:31]} 44. Rxg3 {[%clk 0:00:39]}  Qf4 {[%clk 0:00:29]} 45. Bd3 {[%clk 0:00:39]}  f5 {[%clk 0:00:19]} 46. h4 {[%clk 0:00:39]}  Kh7 {[%clk 0:00:19]} 47. Kh3 {[%clk 0:00:38]}  Kh6 {[%clk 0:00:19]} 48. Rf3 {[%clk 0:00:38]}  Qg4+ {[%clk 0:00:18]} 49. Kh2 {[%clk 0:00:38]}  f4 {[%clk 0:00:19]} 50. Rh3 {[%clk 0:00:36]}  Kg7 {[%clk 0:00:18]} 51. h5 {[%clk 0:00:36]}  Kh6 {[%clk 0:00:18]} 52. Kh1 {[%clk 0:00:36]}  Qd1+ {[%clk 0:00:17]} 53. Kh2 {[%clk 0:00:36]}  Qd2 {[%clk 0:00:17]} 54. Bg6 {[%clk 0:00:31]}  Qf2 {[%clk 0:00:16]} 55. Kh1 {[%clk 0:00:30]}  Qe1+ {[%clk 0:00:16]} 56. Kh2 {[%clk 0:00:30]}  Qf2 {[%clk 0:00:16]} 57. Kh1 {[%clk 0:00:30]}  Qe1+ {[%clk 0:00:16]} 58. Kh2 {[%clk 0:00:31]}  Qf2 {[%clk 0:00:15]} 1/2-1/2


[Site "https://www.chess.com"]

[Event "Titled Tuesday Blitz February 22 Early 2022"]
[White "Tuleyeva-Aketayeva, Dana"]
[Black "Lauridsen, Jesper Morch"]
[WhiteFideId "13701932"]
[BlackFideId "1401890"]
[WhiteElo "1944"]
[BlackElo "2278"]
[Result "1-0"]
[Round "11"]
[TimeControl "180+1"]
[Date "2022.02.22"]
[WhiteClock "0:00:07"]
[BlackClock "0:00:19"]

1. d4 {[%clk 0:03:00]}  Nf6 {[%clk 0:02:58]} 2. Nf3 {[%clk 0:03:01]}  e6 {[%clk 0:02:58]} 3. g3 {[%clk 0:03:01]}  c5 {[%clk 0:02:55]} 4. c3 {[%clk 0:03:00]}  b6 {[%clk 0:02:51]} 5. Bg2 {[%clk 0:03:00]}  Bb7 {[%clk 0:02:51]} 6. O-O {[%clk 0:03:01]}  Be7 {[%clk 0:02:51]} 7. Nbd2 {[%clk 0:03:00]}  O-O {[%clk 0:02:50]} 8. Re1 {[%clk 0:03:00]}  d5 {[%clk 0:02:48]} 9. Ne5 {[%clk 0:03:00]}  Nbd7 {[%clk 0:02:46]} 10. Ndf3 {[%clk 0:03:00]}  cxd4 {[%clk 0:02:39]} 11. cxd4 {[%clk 0:02:58]}  Bb4 {[%clk 0:02:38]} 12. Bd2 {[%clk 0:02:58]}  Bxd2 {[%clk 0:02:37]} 13. Nxd2 {[%clk 0:02:34]}  Nxe5 {[%clk 0:02:34]} 14. dxe5 {[%clk 0:02:34]}  Ng4 {[%clk 0:02:33]} 15. e4 {[%clk 0:02:30]}  Nxe5 {[%clk 0:02:27]} 16. exd5 {[%clk 0:02:31]}  Nd3 {[%clk 0:02:27]} 17. Re3 {[%clk 0:01:57]}  Nc5 {[%clk 0:02:26]} 18. dxe6 {[%clk 0:01:42]}  fxe6 {[%clk 0:02:10]} 19. Bxb7 {[%clk 0:01:40]}  Nxb7 {[%clk 0:02:10]} 20. Ne4 {[%clk 0:01:23]}  Qe7 {[%clk 0:01:58]} 21. Rc1 {[%clk 0:01:12]}  Rad8 {[%clk 0:01:58]} 22. Qa4 {[%clk 0:01:08]}  Nd6 {[%clk 0:01:54]} 23. Nxd6 {[%clk 0:01:06]}  Qxd6 {[%clk 0:01:51]} 24. Qb3 {[%clk 0:01:03]}  Rf6 {[%clk 0:01:28]} 25. Rce1 {[%clk 0:00:40]}  Kf7 {[%clk 0:01:19]} 26. Qa4 {[%clk 0:00:31]}  a5 {[%clk 0:01:16]} 27. Qe4 {[%clk 0:00:27]}  h6 {[%clk 0:01:10]} 28. Qb7+ {[%clk 0:00:18]}  Rd7 {[%clk 0:01:08]} 29. Qe4 {[%clk 0:00:17]}  Qd2 {[%clk 0:01:07]} 30. R1e2 {[%clk 0:00:17]}  Qc1+ {[%clk 0:01:05]} 31. Kg2 {[%clk 0:00:17]}  Rd1 {[%clk 0:01:01]} 32. Qb7+ {[%clk 0:00:17]}  Kg8 {[%clk 0:01:01]} 33. Rxe6 {[%clk 0:00:16]}  Rg1+ {[%clk 0:01:00]} 34. Kh3 {[%clk 0:00:16]}  Qf1+ {[%clk 0:00:59]} 35. Kg4 {[%clk 0:00:12]}  Rxe6 {[%clk 0:00:45]} 36. Qc8+ {[%clk 0:00:10]}  Kh7 {[%clk 0:00:44]} 37. Qxe6 {[%clk 0:00:10]}  Qb1 {[%clk 0:00:36]} 38. Qe4+ {[%clk 0:00:09]}  Qxe4+ {[%clk 0:00:36]} 39. Rxe4 {[%clk 0:00:09]}  Rb1 {[%clk 0:00:31]} 40. Re2 {[%clk 0:00:09]}  b5 {[%clk 0:00:31]} 41. a3 {[%clk 0:00:09]}  Kg6 {[%clk 0:00:31]} 42. h4 {[%clk 0:00:09]}  h5+ {[%clk 0:00:30]} 43. Kf4 {[%clk 0:00:10]}  b4 {[%clk 0:00:30]} 44. axb4 {[%clk 0:00:09]}  axb4 {[%clk 0:00:30]} 45. Ke4 {[%clk 0:00:10]}  b3 {[%clk 0:00:30]} 46. Kd3 {[%clk 0:00:10]}  Rc1 {[%clk 0:00:30]} 47. Rd2 {[%clk 0:00:08]}  Kf5 {[%clk 0:00:29]} 48. Ke2 {[%clk 0:00:08]}  Kg4 {[%clk 0:00:27]} 49. Ke3 {[%clk 0:00:07]}  Kh3 {[%clk 0:00:26]} 50. Kf3 {[%clk 0:00:07]}  Rc2 {[%clk 0:00:25]} 51. Ke2 {[%clk 0:00:06]}  Kg2 {[%clk 0:00:22]} 52. Rxc2 {[%clk 0:00:06]}  bxc2 {[%clk 0:00:22]} 53. Kd2 {[%clk 0:00:06]}  Kxf2 {[%clk 0:00:21]} 54. Kxc2 {[%clk 0:00:06]}  Ke3 {[%clk 0:00:21]} 55. Kc3 {[%clk 0:00:07]}  Ke4 {[%clk 0:00:20]} 56. Kc4 {[%clk 0:00:07]}  Kf3 {[%clk 0:00:19]} 57. b4 {[%clk 0:00:07]}  Kxg3 {[%clk 0:00:20]} 58. b5 {[%clk 0:00:08]}  Kxh4 {[%clk 0:00:20]} 59. b6 {[%clk 0:00:08]}  Kg3 {[%clk 0:00:20]} 60. b7 {[%clk 0:00:09]}  h4 {[%clk 0:00:21]} 61. b8=Q+ {[%clk 0:00:09]}  Kg2 {[%clk 0:00:20]} 62. Qb7+ {[%clk 0:00:09]}  Kg3 {[%clk 0:00:20]} 63. Qxg7+ {[%clk 0:00:09]}  Kh2 {[%clk 0:00:20]} 64. Qe5+ {[%clk 0:00:08]}  Kg2 {[%clk 0:00:19]} 65. Qe4+ {[%clk 0:00:08]}  Kg3 {[%clk 0:00:19]} 66. Qe3+ {[%clk 0:00:08]}  Kg2 {[%clk 0:00:19]} 67. Qe2+ {[%clk 0:00:08]}  Kg1 {[%clk 0:00:19]} 68. Qg4+ {[%clk 0:00:07]} 1-0


[Site "https://www.chess.com"]

[Event "Titled Tuesday Blitz February 22 Early 2022"]
[White "Vine, Elzbieta"]
[Black "Viskelis, Darius"]
[WhiteFideId "1119320"]
[BlackFideId "12800830"]
[WhiteElo "1883"]
[BlackElo "1999"]
[Result "0-1"]
[Round "11"]
[TimeControl "180+1"]
[Date "2022.02.22"]
[WhiteClock "0:00:05"]
[BlackClock "0:02:13"]

1. e4 {[%clk 0:02:59]}  d5 {[%clk 0:03:00]} 2. exd5 {[%clk 0:02:57]}  c6 {[%clk 0:03:01]} 3. dxc6 {[%clk 0:02:53]}  e5 {[%clk 0:03:01]} 4. Nc3 {[%clk 0:02:49]}  Nxc6 {[%clk 0:03:00]} 5. Bc4 {[%clk 0:02:46]}  Bc5 {[%clk 0:03:00]} 6. Ne4 {[%clk 0:02:32]}  Bb6 {[%clk 0:02:56]} 7. Nf3 {[%clk 0:02:24]}  Nf6 {[%clk 0:02:52]} 8. Qe2 {[%clk 0:02:00]}  O-O {[%clk 0:02:47]} 9. d3 {[%clk 0:01:56]}  Bg4 {[%clk 0:02:47]} 10. Bg5 {[%clk 0:01:53]}  Nd4 {[%clk 0:02:47]} 11. Qd2 {[%clk 0:01:39]}  Bxf3 {[%clk 0:02:45]} 12. Bxf6 {[%clk 0:01:28]}  gxf6 {[%clk 0:02:44]} 13. Qh6 {[%clk 0:01:22]}  Bxe4 {[%clk 0:02:44]} 14. dxe4 {[%clk 0:01:14]}  Nxc2+ {[%clk 0:02:44]} 15. Ke2 {[%clk 0:01:11]}  Nxa1 {[%clk 0:02:38]} 16. Rd1 {[%clk 0:01:04]}  Bd4 {[%clk 0:02:36]} 17. Rxa1 {[%clk 0:01:00]}  Rc8 {[%clk 0:02:32]} 18. Bb3 {[%clk 0:00:51]}  Rc6 {[%clk 0:02:22]} 19. Rd1 {[%clk 0:00:49]}  f5 {[%clk 0:02:21]} 20. Qh5 {[%clk 0:00:45]}  fxe4 {[%clk 0:02:17]} 21. f3 {[%clk 0:00:37]}  Rg6 {[%clk 0:02:15]} 22. g4 {[%clk 0:00:18]}  exf3+ {[%clk 0:02:13]} 23. Kxf3 {[%clk 0:00:17]}  Qf6+ {[%clk 0:02:13]} 24. Kg3 {[%clk 0:00:09]}  Qf2+ {[%clk 0:02:11]} 25. Kh3 {[%clk 0:00:06]}  Qf3+ {[%clk 0:02:12]} 26. Kh4 {[%clk 0:00:05]}  Bf2# {[%clk 0:02:13]} 0-1


[Site "https://www.chess.com"]

[Event "Titled Tuesday Blitz February 22 Early 2022"]
[White "Voege, Tobias"]
[Black "Langner, Ladislav"]
[WhiteFideId "1270513"]
[BlackFideId "300403"]
[WhiteElo "2335"]
[BlackElo "2346"]
[Result "0-1"]
[Round "11"]
[TimeControl "180+1"]
[Date "2022.02.22"]
[WhiteClock "0:00:15"]
[BlackClock "0:01:04"]

1. d4 {[%clk 0:03:00]}  Nf6 {[%clk 0:02:57]} 2. c4 {[%clk 0:03:00]}  c5 {[%clk 0:02:55]} 3. d5 {[%clk 0:03:00]}  e5 {[%clk 0:02:56]} 4. b3 {[%clk 0:02:53]}  d6 {[%clk 0:02:57]} 5. Bb2 {[%clk 0:02:53]}  Be7 {[%clk 0:02:55]} 6. e3 {[%clk 0:02:53]}  Nbd7 {[%clk 0:02:52]} 7. Bd3 {[%clk 0:02:53]}  Nf8 {[%clk 0:02:49]} 8. Qc2 {[%clk 0:02:53]}  Ng6 {[%clk 0:02:48]} 9. Ne2 {[%clk 0:02:53]}  a6 {[%clk 0:02:46]} 10. a4 {[%clk 0:02:52]}  Bd7 {[%clk 0:02:44]} 11. Nd2 {[%clk 0:02:51]}  b5 {[%clk 0:02:41]} 12. axb5 {[%clk 0:02:50]}  axb5 {[%clk 0:02:41]} 13. O-O {[%clk 0:02:50]}  b4 {[%clk 0:02:36]} 14. f4 {[%clk 0:02:43]}  exf4 {[%clk 0:02:35]} 15. exf4 {[%clk 0:02:38]}  O-O {[%clk 0:02:32]} 16. Ng3 {[%clk 0:02:29]}  Rxa1 {[%clk 0:02:27]} 17. Bxa1 {[%clk 0:02:30]}  Ng4 {[%clk 0:02:25]} 18. Bxg6 {[%clk 0:02:20]}  hxg6 {[%clk 0:02:19]} 19. Qd3 {[%clk 0:02:20]}  Bf6 {[%clk 0:02:18]} 20. h3 {[%clk 0:02:08]}  Bxa1 {[%clk 0:02:17]} 21. Rxa1 {[%clk 0:02:09]}  Nh6 {[%clk 0:01:50]} 22. Nde4 {[%clk 0:01:50]}  Nf5 {[%clk 0:01:48]} 23. Nxf5 {[%clk 0:01:25]}  Bxf5 {[%clk 0:01:46]} 24. g4 {[%clk 0:01:16]}  Bxe4 {[%clk 0:01:44]} 25. Qxe4 {[%clk 0:01:16]}  Re8 {[%clk 0:01:43]} 26. Qf3 {[%clk 0:01:11]}  Qf6 {[%clk 0:01:40]} 27. Rf1 {[%clk 0:01:06]}  Qd4+ {[%clk 0:01:38]} 28. Qf2 {[%clk 0:00:30]}  Re3 {[%clk 0:01:38]} 29. Kh2 {[%clk 0:00:27]}  Qd3 {[%clk 0:01:32]} 30. Re1 {[%clk 0:00:17]}  Rxh3+ {[%clk 0:01:08]} 31. Kg2 {[%clk 0:00:18]}  Qxb3 {[%clk 0:01:08]} 32. Re8+ {[%clk 0:00:16]}  Kh7 {[%clk 0:01:08]} 33. f5 {[%clk 0:00:16]}  Rh6 {[%clk 0:01:05]} 34. f6 {[%clk 0:00:15]}  Qh3+ {[%clk 0:01:04]} 35. Kg1 {[%clk 0:00:15]}  Qh1# {[%clk 0:01:04]} 0-1


[Site "https://www.chess.com"]

[Event "Titled Tuesday Blitz February 22 Early 2022"]
[White "Von Buelow, Georg"]
[Black "Tsatsalashvili, Keti"]
[WhiteFideId "4620658"]
[BlackFideId "13603434"]
[WhiteElo "2212"]
[BlackElo "2246"]
[Result "0-1"]
[Round "11"]
[TimeControl "180+1"]
[Date "2022.02.22"]
[WhiteClock "0:01:18"]
[BlackClock "0:00:21"]

1. e4 {[%clk 0:02:59]}  c5 {[%clk 0:02:59]} 2. Nf3 {[%clk 0:02:59]}  d6 {[%clk 0:03:00]} 3. d4 {[%clk 0:03:00]}  cxd4 {[%clk 0:03:01]} 4. Nxd4 {[%clk 0:03:01]}  Nf6 {[%clk 0:03:01]} 5. Nc3 {[%clk 0:03:01]}  Nc6 {[%clk 0:03:01]} 6. Bg5 {[%clk 0:03:00]}  e6 {[%clk 0:02:59]} 7. Qd2 {[%clk 0:03:00]}  a6 {[%clk 0:02:59]} 8. O-O-O {[%clk 0:02:59]}  Bd7 {[%clk 0:02:58]} 9. f4 {[%clk 0:02:57]}  Nxd4 {[%clk 0:02:51]} 10. Qxd4 {[%clk 0:02:56]}  Qc7 {[%clk 0:02:45]} 11. e5 {[%clk 0:02:52]}  dxe5 {[%clk 0:02:42]} 12. fxe5 {[%clk 0:02:53]}  Bc5 {[%clk 0:02:34]} 13. Qf4 {[%clk 0:02:38]}  Nh5 {[%clk 0:02:24]} 14. Qh4 {[%clk 0:02:28]}  Qxe5 {[%clk 0:02:22]} 15. Kb1 {[%clk 0:02:25]}  h6 {[%clk 0:02:10]} 16. Bc1 {[%clk 0:02:09]}  Be7 {[%clk 0:01:56]} 17. Qg4 {[%clk 0:01:58]}  Bc6 {[%clk 0:01:49]} 18. Be2 {[%clk 0:01:48]}  g6 {[%clk 0:01:46]} 19. Rhe1 {[%clk 0:01:42]}  Qg7 {[%clk 0:01:17]} 20. Bf3 {[%clk 0:01:31]}  O-O {[%clk 0:00:59]} 21. Bxc6 {[%clk 0:01:26]}  bxc6 {[%clk 0:01:00]} 22. Rd7 {[%clk 0:01:21]}  Nf6 {[%clk 0:00:59]} 23. Rxe7 {[%clk 0:01:18]}  Nxg4 {[%clk 0:00:59]} 24. Rxf7 {[%clk 0:01:19]}  Qxf7 {[%clk 0:00:56]} 25. Bxh6 {[%clk 0:01:18]}  Nxh6 {[%clk 0:00:55]} 26. Nd5 {[%clk 0:01:18]}  cxd5 {[%clk 0:00:55]} 27. Rxe6 {[%clk 0:01:18]}  Qf1+ {[%clk 0:00:53]} 28. Re1 {[%clk 0:01:18]}  Qxe1# {[%clk 0:00:21]} 0-1


[Site "https://www.chess.com"]

[Event "Titled Tuesday Blitz February 22 Early 2022"]
[White "Vusatiuk, Vladimir"]
[Black "Fathy, Elameir"]
[WhiteFideId "14118610"]
[BlackFideId "10600396"]
[WhiteElo "2157"]
[BlackElo "2311"]
[Result "0-1"]
[Round "11"]
[TimeControl "180+1"]
[Date "2022.02.22"]
[WhiteClock "0:00:03"]
[BlackClock "0:00:12"]

1. d4 {[%clk 0:03:00]}  d5 {[%clk 0:03:00]} 2. c4 {[%clk 0:03:00]}  c6 {[%clk 0:03:00]} 3. Nc3 {[%clk 0:03:01]}  Nf6 {[%clk 0:02:59]} 4. Nf3 {[%clk 0:03:01]}  dxc4 {[%clk 0:03:00]} 5. a4 {[%clk 0:03:01]}  Bf5 {[%clk 0:02:59]} 6. Ne5 {[%clk 0:03:01]}  e6 {[%clk 0:02:59]} 7. f3 {[%clk 0:03:00]}  Bb4 {[%clk 0:03:00]} 8. e4 {[%clk 0:02:59]}  Bxe4 {[%clk 0:02:55]} 9. fxe4 {[%clk 0:02:54]}  Nxe4 {[%clk 0:02:55]} 10. Qf3 {[%clk 0:02:44]}  Qxd4 {[%clk 0:02:53]} 11. Qxf7+ {[%clk 0:02:11]}  Kd8 {[%clk 0:02:54]} 12. Qxg7 {[%clk 0:01:41]}  Bxc3+ {[%clk 0:02:31]} 13. bxc3 {[%clk 0:01:40]}  Qxc3+ {[%clk 0:02:31]} 14. Ke2 {[%clk 0:01:29]}  Re8 {[%clk 0:01:06]} 15. Nf7+ {[%clk 0:01:05]}  Kd7 {[%clk 0:01:03]} 16. Ne5+ {[%clk 0:00:46]}  Kc8 {[%clk 0:00:57]} 17. Rb1 {[%clk 0:00:25]}  Qc2+ {[%clk 0:00:53]} 18. Ke3 {[%clk 0:00:25]}  Qxb1 {[%clk 0:00:54]} 19. Bxc4 {[%clk 0:00:25]}  Nd6 {[%clk 0:00:44]} 20. Rf1 {[%clk 0:00:10]}  Qe4+ {[%clk 0:00:25]} 21. Kd2 {[%clk 0:00:08]}  Nxc4+ {[%clk 0:00:24]} 22. Nxc4 {[%clk 0:00:09]}  Qxc4 {[%clk 0:00:22]} 23. Rf8 {[%clk 0:00:10]}  Qd5+ {[%clk 0:00:19]} 24. Ke1 {[%clk 0:00:07]}  Rxf8 {[%clk 0:00:12]} 25. Qxf8+ {[%clk 0:00:07]}  Kc7 {[%clk 0:00:12]} 26. Bf4+ {[%clk 0:00:07]}  e5 {[%clk 0:00:13]} 27. Qe7+ {[%clk 0:00:07]}  Nd7 {[%clk 0:00:13]} 28. Bg3 {[%clk 0:00:05]}  Qe4+ {[%clk 0:00:12]} 29. Kd1 {[%clk 0:00:04]}  Rf8 {[%clk 0:00:13]} 30. Bxe5+ {[%clk 0:00:03]}  Qxe5 {[%clk 0:00:12]} 0-1


[Site "https://www.chess.com"]

[Event "Titled Tuesday Blitz February 22 Early 2022"]
[White "Wartiovaara, Oliver"]
[Black "Necula, Iulian"]
[WhiteFideId "513024"]
[BlackFideId "1232380"]
[WhiteElo "1971"]
[BlackElo "1776"]
[Result "0-1"]
[Round "11"]
[TimeControl "180+1"]
[Date "2022.02.22"]
[WhiteClock "0:00:02"]
[BlackClock "0:00:19"]

1. e4 {[%clk 0:03:00]}  g6 {[%clk 0:02:59]} 2. d4 {[%clk 0:02:58]}  c6 {[%clk 0:03:00]} 3. Nf3 {[%clk 0:02:51]}  d5 {[%clk 0:02:59]} 4. Nbd2 {[%clk 0:02:49]}  dxe4 {[%clk 0:02:58]} 5. Nxe4 {[%clk 0:02:50]}  Nf6 {[%clk 0:02:59]} 6. Nxf6+ {[%clk 0:02:41]}  exf6 {[%clk 0:03:00]} 7. h3 {[%clk 0:02:37]}  Bg7 {[%clk 0:03:01]} 8. Bd3 {[%clk 0:02:35]}  O-O {[%clk 0:03:02]} 9. O-O {[%clk 0:02:35]}  Nd7 {[%clk 0:03:02]} 10. Re1 {[%clk 0:02:34]}  Re8 {[%clk 0:03:02]} 11. Bf4 {[%clk 0:02:31]}  Nf8 {[%clk 0:03:01]} 12. c3 {[%clk 0:02:20]}  Rxe1+ {[%clk 0:03:00]} 13. Qxe1 {[%clk 0:02:19]}  Be6 {[%clk 0:02:59]} 14. Nd2 {[%clk 0:02:12]}  Rc8 {[%clk 0:02:58]} 15. Bc4 {[%clk 0:02:12]}  c5 {[%clk 0:02:52]} 16. dxc5 {[%clk 0:02:02]}  Rxc5 {[%clk 0:02:42]} 17. Qe2 {[%clk 0:01:57]}  Bxc4 {[%clk 0:02:27]} 18. Nxc4 {[%clk 0:01:58]}  Ne6 {[%clk 0:02:25]} 19. Be3 {[%clk 0:01:55]}  Rb5 {[%clk 0:02:22]} 20. Rd1 {[%clk 0:01:44]}  Qb8 {[%clk 0:02:13]} 21. Rd7 {[%clk 0:01:24]}  b6 {[%clk 0:02:05]} 22. Nd6 {[%clk 0:01:17]}  Rd5 {[%clk 0:01:47]} 23. Bf4 {[%clk 0:00:56]}  Nxf4 {[%clk 0:01:36]} 24. Qe7 {[%clk 0:00:56]}  Qf8 {[%clk 0:01:29]} 25. Rd8 {[%clk 0:00:55]}  Qxd8 {[%clk 0:00:30]} 26. Qxd8+ {[%clk 0:00:50]}  Bf8 {[%clk 0:00:31]} 27. Qxf6 {[%clk 0:00:21]}  Ne2+ {[%clk 0:00:28]} 28. Kf1 {[%clk 0:00:20]}  Rxd6 {[%clk 0:00:29]} 29. Qf3 {[%clk 0:00:15]}  Nc1 {[%clk 0:00:29]} 30. a4 {[%clk 0:00:09]}  a5 {[%clk 0:00:28]} 31. g3 {[%clk 0:00:08]}  Nb3 {[%clk 0:00:28]} 32. Kg2 {[%clk 0:00:07]}  Nc5 {[%clk 0:00:28]} 33. b4 {[%clk 0:00:05]}  Nxa4 {[%clk 0:00:28]} 34. bxa5 {[%clk 0:00:04]}  bxa5 {[%clk 0:00:28]} 35. Qe4 {[%clk 0:00:05]}  Nb6 {[%clk 0:00:27]} 36. c4 {[%clk 0:00:04]}  Re6 {[%clk 0:00:25]} 37. Qd4 {[%clk 0:00:04]}  a4 {[%clk 0:00:25]} 38. c5 {[%clk 0:00:03]}  a3 {[%clk 0:00:25]} 39. cxb6 {[%clk 0:00:03]}  a2 {[%clk 0:00:26]} 40. Qb2 {[%clk 0:00:01]}  Rxb6 {[%clk 0:00:24]} 41. Qxa2 {[%clk 0:00:01]}  Re6 {[%clk 0:00:21]} 42. Qe2 {[%clk 0:00:01]}  Rxe2 {[%clk 0:00:19]} 43. Kf3 {[%clk 0:00:02]} 0-1


[Site "https://www.chess.com"]